bitfinex-derivatives/quotes_ETHF0:USTF0_20241105
["timestamp","ask_amount","ask_price","bid_price","bid_amount"]
[1730791726491,0.41273,2424.2,2424.1,0.41275]
[1730791728089,0.4569,2424.3,2424.0,1.18900543]
[1730791728290,0.86963,2424.3,2424.0,1.18900543]
[1730791728489,0.4569,2424.3,2424.2,1.18900543]
[1730791728695,0.41271,2424.3,2424.2,1.18900543]
[1730791729094,0.41271,2424.3,2424.2,1.60173543]
[1730791731700,0.9167,2424.5,2424.2,1.60173543]
[1730791731900,0.41271,2424.3,2424.2,1.60173543]
[1730791732103,0.41271,2424.3,2424.2,2.95213543]
[1730791732997,0.9167,2424.5,2424.2,2.53940543]
[1730791733301,0.41271,2424.3,2424.2,2.95212543]
[1730791733499,0.4127,2424.4,2424.3,0.4127]
[1730791734098,0.41271,2424.3,2424.2,2.95212543]
[1730791734501,1.32939,2424.5,2424.4,0.4127]
[1730791734800,0.87989,2424.5,2424.4,0.4127]
[1730791735003,0.4127,2424.4,2424.3,0.4127]
[1730791735796,0.4127,2424.4,2424.2,2.95212543]
[1730791736197,0.41271,2424.3,2424.2,2.95212543]
[1730791736601,0.41271,2424.4,2424.3,0.41271]
[1730791737000,0.87989,2424.5,2424.4,0.4127]
[1730791737402,0.4127,2424.4,2424.3,0.4127]
[1730791737904,0.4672,2424.5,2424.2,2.53940543]
[1730791738098,0.4672,2424.5,2424.4,0.4127]
[1730791738299,0.4672,2424.5,2424.3,1.18900543]
[1730791738300,0.41268,2424.6,2424.5,0.41268]
[1730791738492,0.41267,2424.6,2424.5,0.41267]
[1730791738698,4.0882,2424.7,2424.3,1.18900543]
[1730791738894,4.0882,2424.7,2424.4,0.41268]
[1730791739093,0.41268,2424.5,2424.4,0.41268]
[1730791739593,0.8804,2424.7,2424.3,4.39680543]
[1730791739906,0.41266,2424.6,2424.5,1.60167543]
[1730791740106,0.41266,2424.6,2424.5,1.18900543]
[1730791740304,1.29306,2424.7,2424.6,0.41266]
[1730791740794,0.41266,2424.6,2424.5,1.60167543]
[1730791741104,0.41266,2424.6,2424.5,1.18900543]
[1730791741804,1.29306,2424.7,2424.6,0.41266]
[1730791742002,0.4496,2424.7,2424.6,0.41266]
[1730791742300,0.4496,2424.7,2424.6,1.32126]
[1730791742502,0.86224,2424.7,2424.6,0.9086]
[1730791743008,0.86224,2424.7,2424.6,1.32126]
[1730791743392,0.86224,2424.7,2424.6,0.9086]
[1730791748204,0.86224,2424.7,2424.6,0.4562]
[1730791749699,0.41267,2424.6,2424.5,0.41267]
[1730791749901,0.41266,2424.6,2424.5,0.22640183]
[1730791750306,6.34546543,2424.6,2424.1,0.41273]
[1730791750507,6.34546543,2424.6,2424.2,0.22646377]
[1730791750508,0.41271,2424.3,2424.2,0.22646377]
[1730791750699,0.4586,2424.5,2424.2,0.22646377]
[1730791750700,3.70530659,2424.5,2424.2,0.22646377]
[1730791750897,3.70530659,2424.5,2424.3,0.41271]
[1730791750898,42.0815,2424.4,2424.3,0.41271]
[1730791751106,1.2815,2424.4,2424.3,0.41271]
[1730791751310,1.2815,2424.4,2424.3,0.63917485]
[1730791751510,1.2815,2424.4,2424.2,0.41272]
[1730791751908,0.8688,2424.4,2424.2,0.41272]
[1730791752104,0.41271,2424.3,2424.2,0.41272]
[1730791752407,0.41271,2424.3,2424.2,0.63921303]
[1730791753911,1.28151,2424.4,2424.3,0.41271]
[1730791754102,1.28151,2424.4,2424.3,0.22649303]
[1730791755205,1.28151,2424.4,2424.2,0.41272]
[1730791755206,4.11550659,2424.4,2424.2,0.41272]
[1730791755410,0.41271,2424.3,2424.2,0.41272]
[1730791755711,1.2815,2424.4,2424.3,0.41271]
[1730791755908,1.2815,2424.4,2424.3,0.22652917]
[1730791756208,4.52820659,2424.4,2424.3,0.22652917]
[1730791757408,0.41271,2424.3,2424.2,0.41272]
[1730791757608,0.41271,2424.3,2424.2,0.63927346]
[1730791758105,0.41271,2424.3,2424.2,0.22655346]
[1730791758617,0.41271,2424.3,2424.2,0.22656989]
[1730791759007,0.41271,2424.3,2424.2,0.63929989]
[1730791759507,0.41271,2424.3,2424.2,0.22656989]
[1730791759910,4.11550659,2424.4,2424.2,0.22656989]
[1730791760111,4.52821659,2424.4,2424.3,0.22656989]
[1730791761015,4.11550659,2424.4,2424.2,0.41273]
[1730791761217,0.41273,2424.2,2424.1,4.85990543]
[1730791761415,0.41273,2424.2,2424.1,3.43436508]
[1730791761615,1.60173543,2424.2,2424.1,0.22656508]
[1730791761912,4.43571202,2424.2,2423.8,3.2078]
[1730791762114,0.41278,2423.9,2423.8,3.62059]
[1730791762313,0.41278,2423.9,2423.8,4.39643113]
[1730791764019,0.4635,2424.0,2423.8,3.98364113]
[1730791764218,0.4635,2424.0,2423.9,0.63935779]
[1730791764219,0.87627,2424.0,2423.9,0.63935779]
[1730791764917,0.87627,2424.0,2423.9,0.22657779]
[1730791765715,0.87627,2424.0,2423.8,0.41278]
[1730791765911,0.87627,2424.0,2423.9,0.63927124]
[1730791766215,0.87627,2424.0,2423.9,0.41278]
[1730791766416,0.87627,2424.0,2423.9,0.6392552]
[1730791766624,0.87627,2424.0,2423.9,0.8657304]
[1730791768123,0.87627,2424.0,2423.9,0.4529504]
[1730791768325,0.87627,2424.0,2423.9,0.2264752]
[1730791768823,0.87627,2424.0,2423.9,0.6392552]
[1730791769515,0.87627,2424.0,2423.9,0.63921996]
[1730791776730,0.87627,2424.0,2423.9,0.41278]
[1730791779530,0.87626,2424.0,2423.9,0.41278]
[1730791780421,0.4635,2424.0,2423.9,0.41278]
[1730791780629,1.35075,2424.1,2423.8,3.2078]
[1730791780832,1.35075,2424.1,2424.0,0.41276]
[1730791781734,0.47,2424.1,2424.0,0.41276]
[1730791782139,0.88275,2424.1,2424.0,0.41276]
[1730791782526,0.41275,2424.1,2424.0,0.41276]
[1730791783028,0.41275,2424.1,2424.0,0.86286]
[1730791787731,0.41274,2424.2,2424.1,0.41274]
[1730791788635,4.11353659,2424.3,2424.2,0.41273]
[1730791788938,0.4541,2424.3,2424.2,0.41273]
[1730791789641,4.11351659,2424.3,2424.2,0.41273]
[1730791789837,0.86681,2424.3,2424.2,0.41273]
[1730791790435,4.11351659,2424.3,2424.2,0.41273]
[1730791790742,0.86681,2424.3,2424.2,0.41273]
[1730791791633,3.65941659,2424.4,2424.3,0.41271]
[1730791791833,3.71410659,2424.4,2424.1,0.9051]
[1730791792033,0.41271,2424.3,2424.2,0.41273]
[1730791792240,3.71410659,2424.4,2424.3,0.41271]
[1730791792844,4.12680659,2424.4,2424.3,0.41271]
[1730791793047,3.71410659,2424.4,2424.1,0.9051]
[1730791794743,0.88011,2424.4,2424.3,0.41271]
[1730791794942,0.41272,2424.3,2424.2,0.41272]
[1730791795130,0.4674,2424.4,2424.3,0.41271]
[1730791795440,0.4674,2424.4,2424.3,0.63919104]
[1730791795641,4.12569371,2424.4,2424.3,0.63919104]
[1730791796343,4.12569371,2424.4,2424.3,0.41271]
[1730791796539,4.12569371,2424.4,2424.3,0.63929012]
[1730791798341,8.25049371,2424.4,2424.3,0.22658012]
[1730791799145,4.12569371,2424.4,2424.3,0.63929012]
[1730791799843,4.12569371,2424.4,2424.3,0.22658012]
[1730791800241,4.12569371,2424.4,2424.3,0.41271]
[1730791800444,3.71299371,2424.4,2424.3,0.63930639]
[1730791800747,3.71299371,2424.4,2424.3,0.63929848]
[1730791800748,3.24559371,2424.4,2424.3,0.63929848]
[1730791801148,3.65829371,2424.4,2424.3,0.63929848]
[1730791802447,3.24559371,2424.4,2424.3,0.63929848]
[1730791802645,3.65829371,2424.4,2424.3,0.63929848]
[1730791803046,3.65829371,2424.4,2424.3,0.41271]
[1730791803546,3.65829371,2424.4,2424.3,0.63931303]
[1730791803547,3.24559371,2424.4,2424.3,0.63931303]
[1730791804142,4.65790567,2424.6,2424.3,0.63931303]
[1730791804143,3.24559371,2424.6,2424.3,1.96489292]
[1730791804345,3.24559371,2424.7,2424.4,4.44358749]
[1730791804551,3.69849371,2424.8,2424.7,0.41264]
[1730791804748,3.69849371,2424.8,2424.7,0.63924303]
[1730791805348,0.4529,2424.8,2424.7,0.63924303]
[1730791805546,3.68339371,2424.9,2424.8,0.41263]
[1730791805547,3.24559371,2424.9,2424.8,0.41263]
[1730791805851,3.24559371,2425.0,2424.9,0.41261]
[1730791806047,3.24559371,2425.1,2424.9,0.66010303]
[1730791806253,3.65817371,2425.1,2425.0,0.41259]
[1730791806452,0.41259,2425.0,2424.9,0.8926]
[1730791806650,0.4127,2424.4,2424.2,3.2078]
[1730791806849,0.4127,2424.4,2424.3,0.41271]
[1730791807354,0.4127,2424.4,2424.3,0.6391539]
[1730791807658,0.8912,2424.5,2424.4,0.4127]
[1730791807862,0.8912,2424.5,2424.2,4.0876]
[1730791808049,0.4127,2424.4,2424.3,0.63912297]
[1730791808455,0.8912,2424.5,2424.3,0.63912297]
[1730791808749,0.4127,2424.4,2424.3,0.4127]
[1730791808952,0.4127,2424.4,2424.3,0.63911462]
[1730791809153,0.4127,2424.4,2424.3,0.22641462]
[1730791809359,0.4127,2424.4,2424.2,4.0876]
[1730791809549,0.4127,2424.4,2424.3,0.63911955]
[1730791810056,0.8912,2424.5,2424.3,0.63911955]
[1730791810248,0.4127,2424.4,2424.3,0.41271]
[1730791810448,0.8912,2424.5,2424.3,0.22640351]
[1730791810648,0.8912,2424.5,2424.3,0.41271]
[1730791810649,0.4127,2424.4,2424.3,0.41271]
[1730791811563,0.8912,2424.5,2424.3,0.41271]
[1730791811861,0.8912,2424.5,2424.4,0.4127]
[1730791812362,0.096,2424.8,2424.4,9.29669182]
[1730791812659,5.45359914,2425.1,2424.7,3.2078]
[1730791812960,5.35759914,2425.1,2424.8,0.4669]
[1730791813151,0.41261,2424.9,2424.8,0.4669]
[1730791813345,5.35759914,2425.1,2424.8,0.87953]
[1730791813964,0.41261,2424.9,2424.8,0.87952]
[1730791814256,3.24559371,2425.0,2424.8,0.4669]
[1730791814455,4.16859371,2425.1,2425.0,0.41259]
[1730791814657,1.33558,2425.1,2425.0,0.41259]
[1730791814861,1.33558,2425.1,2424.8,0.4669]
[1730791814862,1.33558,2425.1,2424.9,0.41259]
[1730791815256,0.41259,2425.0,2424.9,0.41259]
[1730791815457,2.11200543,2425.1,2424.8,0.87951]
[1730791815655,0.41261,2424.9,2424.8,0.87951]
[1730791816159,0.4126,2425.0,2424.9,0.4126]
[1730791816552,2.52458543,2425.1,2424.9,0.4126]
[1730791816859,0.4665,2425.1,2425.0,0.41259]
[1730791817161,3.34159371,2425.4,2424.9,1.64820543]
[1730791817351,0.85844,2425.4,2425.2,0.41255]
[1730791817548,0.4459,2425.4,2425.3,0.41254]
[1730791817961,0.4459,2425.4,2425.1,1.63580543]
[1730791818158,0.4459,2425.4,2425.2,0.41255]
[1730791818159,0.85844,2425.4,2425.2,0.41255]
[1730791818359,0.4459,2425.4,2425.3,0.41254]
[1730791820063,0.85843,2425.4,2425.2,0.41254]
[1730791820266,0.85843,2425.4,2425.2,0.41255]
[1730791820468,0.4459,2425.4,2425.3,0.41254]
[1730791820868,1.18900543,2425.6,2425.1,1.63580543]
[1730791821265,0.41254,2425.3,2425.1,0.4468]
[1730791821659,1.18900543,2425.4,2425.3,0.41254]
[1730791822161,1.60152543,2425.4,2425.3,0.41254]
[1730791822769,0.41251,2425.5,2425.4,0.41252]
[1730791823379,1.18900543,2425.6,2425.1,1.63580543]
[1730791823674,42.08377,2425.7,2425.6,0.41249]
[1730791823874,41.2249,2425.7,2425.6,0.41249]
[1730791824074,41.2249,2425.7,2425.3,3.2078]
[1730791824075,0.41251,2425.5,2425.3,3.2078]
[1730791824378,0.41253,2425.4,2425.2,0.41255]
[1730791824570,0.4524,2425.3,2425.2,0.41255]
[1730791824767,0.86494,2425.3,2425.2,0.41255]
[1730791824971,0.41258,2425.1,2425.0,3.2078]
[1730791825177,0.41258,2425.1,2425.0,3.62039]
[1730791825371,0.41258,2425.1,2425.0,3.2078]
[1730791825566,0.41258,2425.1,2425.0,3.62039]
[1730791825567,0.88208,2425.1,2425.0,3.62039]
[1730791826267,48.28466371,2425.6,2425.0,3.2078]
[1730791826268,40.8,2425.6,2425.0,3.2078]
[1730791826475,0.4695,2425.3,2425.2,0.41255]
[1730791826670,0.88204,2425.3,2425.2,0.41255]
[1730791827173,0.4695,2425.3,2425.2,0.41255]
[1730791828678,0.88204,2425.3,2425.2,0.41255]
[1730791829481,0.4695,2425.3,2425.2,0.41255]
[1730791830381,0.88204,2425.3,2425.2,0.41255]
[1730791830581,0.4695,2425.3,2425.2,0.41255]
[1730791833382,0.8826,2425.5,2425.1,1.3383]
[1730791833581,1.3167,2425.5,2425.4,0.41252]
[1730791834284,1.72921,2425.5,2425.4,0.41252]
[1730791834482,0.8865,2425.5,2425.4,0.41252]
[1730791834683,1.76391,2425.5,2425.3,3.62033]
[1730791835176,2.54040543,2425.5,2425.3,3.2078]
[1730791835382,0.41259,2425.1,2424.9,3.6204]
[1730791835579,1.3447,2425.0,2424.9,3.6204]
[1730791835774,0.096,2425.5,2424.9,4.39680543]
[1730791835978,0.88206,2425.3,2425.1,0.41257]
[1730791836179,0.88206,2425.3,2425.0,1.3159]
[1730791836687,0.88206,2425.3,2425.2,0.41256]
[1730791837476,0.4695,2425.3,2425.2,0.41256]
[1730791838976,0.9175,2425.5,2425.4,0.41252]
[1730791838977,0.4673,2425.5,2425.4,0.41252]
[1730791839176,0.8551,2425.6,2425.5,0.41251]
[1730791839587,0.8551,2425.6,2425.1,1.03142]
[1730791839780,0.4426,2425.6,2425.5,0.41251]
[1730791839981,0.85509,2425.6,2425.5,0.41251]
[1730791840995,0.4426,2425.6,2425.5,0.41251]
[1730791842783,3.2078,2425.7,2425.6,0.41249]
[1730791842992,3.62027,2425.7,2425.6,0.41249]
[1730791843182,3.2078,2425.7,2425.6,0.41249]
[1730791844482,0.85997,2425.8,2425.4,0.8796]
[1730791844689,0.85997,2425.8,2425.7,0.41247]
[1730791844983,0.4475,2425.8,2425.7,0.41247]
[1730791845387,0.85996,2425.8,2425.7,0.41247]
[1730791845596,0.4475,2425.8,2425.7,0.41247]
[1730791846080,0.466,2425.9,2425.4,5.11871]
[1730791846285,0.466,2425.9,2425.8,0.41246]
[1730791846481,0.466,2425.9,2425.5,1.03125]
[1730791846482,3.6608,2426.0,2425.9,0.41244]
[1730791846685,44.4608,2426.0,2425.9,0.41244]
[1730791847793,0.84779,2426.2,2426.1,0.41241]
[1730791848094,1.75079,2426.2,2426.1,0.41241]
[1730791849197,1.75079,2426.2,2425.9,0.4326]
[1730791849403,1.75079,2426.2,2426.1,0.41241]
[1730791849898,1.75079,2426.2,2426.0,0.41241]
[1730791850399,1.3384,2426.2,2425.9,0.4326]
[1730791850603,1.75079,2426.2,2426.1,0.41241]
[1730791850896,1.3384,2426.2,2426.1,0.41241]
[1730791852894,0.8884,2426.2,2426.1,0.41241]
[1730791854406,0.453,2426.2,2426.1,0.41241]
[1730791854697,0.453,2426.2,2425.9,0.4326]
[1730791854698,0.86539,2426.2,2425.9,0.4326]
[1730791854900,0.86539,2426.2,2426.0,0.41242]
[1730791855099,0.453,2426.2,2426.0,0.41242]
[1730791855296,0.41241,2426.1,2426.0,0.41242]
[1730791855502,0.41241,2426.1,2425.9,0.4326]
[1730791855691,0.425,2426.0,2425.9,0.84502]
[1730791859295,1.61337205,2426.0,2425.7,3.2078]
[1730791859504,1.31675,2425.9,2425.8,0.41246]
[1730791859994,42.11675,2425.9,2425.7,3.62026]
[1730791860206,41.7043,2425.9,2425.7,3.2078]
[1730791860403,41.7043,2425.9,2425.8,0.41246]
[1730791860793,0.9043,2425.9,2425.8,0.41246]
[1730791860989,0.9043,2425.9,2425.8,0.85096]
[1730791861197,0.425,2426.0,2425.9,0.41244]
[1730791861501,0.8594,2426.0,2425.9,0.41244]
[1730791862098,0.8594,2426.0,2425.9,0.84434]
[1730791862490,0.4344,2426.0,2425.9,0.84434]
[1730791862696,0.8764,2426.2,2426.1,0.41241]
[1730791862999,0.4344,2426.3,2426.2,0.41239]
[1730791863190,0.4344,2426.3,2426.2,0.85089]
[1730791863990,0.4642,2426.5,2426.4,0.41235]
[1730791865397,0.87654,2426.5,2426.4,0.41235]
[1730791866204,0.4642,2426.5,2426.4,0.41235]
[1730791867497,0.87654,2426.5,2426.4,0.41235]
[1730791867800,0.4642,2426.5,2426.4,0.41235]
[1730791873704,0.4585,2426.6,2426.3,3.6375]
[1730791873900,0.4585,2426.6,2426.5,0.41234]
[1730791878599,0.4585,2426.6,2426.3,3.6375]
[1730791878913,0.41235,2426.4,2426.3,3.2078]
[1730791879302,1.29795,2426.4,2426.3,3.2078]
[1730791879604,1.29795,2426.4,2426.3,3.62017]
[1730791879903,0.8856,2426.4,2426.3,3.62017]
[1730791880308,1.29795,2426.4,2426.3,3.62017]
[1730791881011,1.29795,2426.4,2426.3,0.41237]
[1730791882503,0.41237,2426.3,2426.2,3.62017]
[1730791882711,0.4124,2426.2,2426.1,0.4124]
[1730791883511,0.87408,2426.3,2426.1,0.4124]
[1730791883903,0.87408,2426.3,2426.2,0.41239]
[1730791886310,0.4617,2426.3,2426.2,0.41239]
[1730791887209,0.4617,2426.3,2426.2,1.29899]
[1730791888612,3.24559371,2426.7,2426.6,0.41232]
[1730791888815,0.4549,2426.7,2426.6,0.41232]
[1730791889006,0.4549,2426.7,2426.3,0.4417]
[1730791889206,0.41236,2426.4,2426.3,0.41236]
[1730791890313,0.8577,2426.5,2426.1,0.4417]
[1730791890507,0.4549,2426.3,2426.2,0.41238]
[1730791891002,0.86727,2426.3,2426.2,0.41238]
[1730791891208,0.4549,2426.3,2426.2,0.41238]
[1730791894419,0.4549,2426.3,2426.2,0.63864331]
[1730791895518,0.8577,2426.5,2426.2,1.41463536]
[1730791895817,0.8577,2426.5,2426.4,0.41235]
[1730791896211,1.27004,2426.5,2426.4,0.41235]
[1730791896413,0.41236,2426.4,2426.3,0.41236]
[1730791896619,0.41235,2426.4,2426.3,0.63863501]
[1730791897011,0.41235,2426.4,2426.3,0.41236]
[1730791897310,1.27004,2426.5,2426.4,0.41235]
[1730791900509,0.84124,2426.5,2426.4,0.41235]
[1730791900917,0.84124,2426.5,2426.4,0.63870172]
[1730791901129,0.84124,2426.5,2426.4,0.63870146]
[1730791902235,0.4289,2426.5,2426.4,0.63870146]
[1730791902528,0.4289,2426.5,2426.4,1.82707351]
[1730791902732,4.12690371,2426.7,2426.6,0.41232]
[1730791902936,4.57020371,2426.7,2426.6,0.41232]
[1730791903232,1.32461,2426.7,2426.6,0.41232]
[1730791903429,4.15789371,2426.7,2426.5,0.468]
[1730791904028,4.57020371,2426.7,2426.6,0.41232]
[1730791907033,4.10120371,2426.7,2426.6,0.41232]
[1730791907230,4.10120371,2426.7,2426.6,0.63874741]
[1730791907431,4.10120371,2426.7,2426.6,0.63879497]
[1730791908033,3.68889371,2426.7,2426.6,0.41232]
[1730791908328,3.24559371,2426.7,2426.6,0.63879521]
[1730791908530,3.71419371,2426.8,2426.6,1.12747521]
[1730791908730,3.71419371,2426.8,2426.7,0.63877521]
[1730791908937,3.24559371,2426.8,2426.7,1.82714726]
[1730791909138,3.78780567,2426.9,2426.7,1.41484726]
[1730791909139,3.24559371,2426.9,2426.7,1.41484726]
[1730791909434,3.24559371,2426.9,2426.8,0.63876521]
[1730791909627,3.24559371,2426.9,2426.8,1.06726521]
[1730791910635,3.65786371,2426.9,2426.8,0.22647521]
[1730791910829,3.24559371,2426.9,2426.7,0.41229]
[1730791911134,0.41229,2426.8,2426.7,0.41229]
[1730791911333,3.65788371,2426.8,2426.7,0.63876634]
[1730791911537,0.41229,2426.8,2426.7,0.41229]
[1730791911934,0.41229,2426.8,2426.7,0.63875983]
[1730791912243,3.65787371,2426.9,2426.8,0.41229]
[1730791913332,3.24559371,2426.9,2426.8,0.41229]
[1730791913533,3.65786371,2426.9,2426.8,0.41229]
[1730791915441,3.24559371,2426.9,2426.8,0.41229]
[1730791915642,3.65786371,2426.9,2426.8,0.41229]
[1730791918645,3.24559371,2426.9,2426.6,1.3661]
[1730791918945,0.41229,2426.8,2426.7,0.63864188]
[1730791919145,0.41229,2426.8,2426.7,0.63864111]
[1730791919341,0.41229,2426.8,2426.7,0.41229]
[1730791919546,0.41229,2426.8,2426.7,0.63863245]
[1730791920347,0.41229,2426.8,2426.7,0.63862614]
[1730791920549,3.65788371,2426.9,2426.8,0.41229]
[1730791920749,0.41229,2426.9,2426.8,0.41229]
[1730791921746,0.41229,2426.8,2426.7,0.41229]
[1730791921944,0.41229,2426.8,2426.7,0.63859689]
[1730791922251,0.41229,2426.8,2426.7,0.63859877]
[1730791923550,0.41229,2426.8,2426.7,0.41229]
[1730791923951,3.71419371,2427.0,2426.6,1.3661]
[1730791924246,0.41228,2426.9,2426.8,0.41227]
[1730791924653,3.65785371,2427.0,2426.9,0.41227]
[1730791925542,3.24559371,2427.0,2426.9,0.41227]
[1730791925745,4.12449371,2427.1,2427.0,0.41225]
[1730791925952,0.8789,2427.1,2427.0,0.41225]
[1730791926246,3.65781371,2427.3,2427.1,0.41224]
[1730791926443,1.34122,2427.2,2427.1,0.41224]
[1730791927049,0.929,2427.2,2427.1,0.41224]
[1730791927645,1.34122,2427.2,2427.1,0.41224]
[1730791927850,0.929,2427.2,2427.1,0.41224]
[1730791928251,1.34122,2427.2,2427.1,0.41224]
[1730791928846,0.929,2427.2,2427.1,0.41224]
[1730791929656,0.929,2427.2,2427.1,1.60061205]
[1730791931661,3.24559371,2427.4,2427.1,1.18837205]
[1730791931857,3.2078,2427.5,2427.4,0.41218]
[1730791932362,3.2078,2427.5,2427.4,1.73188]
[1730791934563,3.6591,2427.5,2427.4,1.73188]
[1730791935564,3.2078,2427.5,2427.4,1.73188]
[1730791938459,2.63781412,2427.7,2427.6,0.41215]
[1730791938654,2.63781412,2427.7,2427.6,1.60052205]
[1730791938861,0.4513,2427.7,2427.6,1.60052205]
[1730791939778,0.4513,2427.7,2427.6,4.80832205]
[1730791940066,0.4652,2427.9,2427.8,0.41212]
[1730791940266,0.4626,2428.0,2427.8,1.18837205]
[1730791940458,0.4626,2428.0,2427.9,1.60047205]
[1730791940960,3.6584,2428.2,2428.1,0.41207]
[1730791940961,0.4506,2428.2,2428.1,0.41207]
[1730791941161,3.34159371,2428.4,2428.3,0.41203]
[1730791941162,0.4303,2428.4,2428.3,0.41203]
[1730791941363,0.4506,2428.5,2428.4,0.41202]
[1730791941571,0.4506,2428.5,2428.4,1.60039205]
[1730791944062,0.87459,2428.6,2428.4,1.18837205]
[1730791944263,0.4626,2428.6,2428.5,0.412]
[1730791944659,4.5802,2428.6,2428.5,0.412]
[1730791944860,0.4626,2428.6,2428.5,1.60037205]
[1730791945568,0.01936,2428.8,2428.7,0.41196]
[1730791945764,1e-08,2428.8,2428.7,1.60033205]
[1730791945962,1e-08,2428.8,2428.7,6.17373205]
[1730791946869,0.096,2429.2,2429.1,1.60027205]
[1730791947063,0.096,2429.5,2429.4,0.41185]
[1730791947267,2.3399,2429.7,2429.6,0.41181]
[1730791947571,0.9297,2429.7,2429.6,0.41181]
[1730791947769,0.9297,2429.7,2429.4,5.7789765]
[1730791947770,1.3415,2429.7,2429.4,5.7789765]
[1730791948077,0.9297,2429.7,2429.4,5.7789765]
[1730791948268,0.9297,2429.7,2429.6,0.41181]
[1730791948968,0.9297,2429.7,2429.5,0.41182]
[1730791950072,0.9297,2429.7,2429.0,3.2078]
[1730791950472,0.41187,2429.3,2429.0,3.6197]
[1730791950872,0.41186,2429.3,2429.0,3.6197]
[1730791951066,0.41189,2429.2,2429.0,3.2078]
[1730791951265,0.4401,2429.2,2428.7,2.5711765]
[1730791951465,4.0722,2429.1,2428.5,6.2384765]
[1730791951669,0.41195,2428.8,2428.6,0.41197]
[1730791951869,0.41194,2428.9,2428.6,0.41197]
[1730791952066,0.41194,2428.9,2428.7,0.41196]
[1730791952274,0.41194,2428.9,2428.6,0.41197]
[1730791952568,4.0722,2429.1,2428.5,6.2384765]
[1730791952569,4.05831,2429.1,2428.8,0.41194]
[1730791952774,40.8,2429.0,2428.8,0.41194]
[1730791953078,40.8,2429.0,2428.7,2.5711765]
[1730791953271,40.8,2429.0,2428.8,0.41195]
[1730791953475,40.8,2429.0,2428.9,0.41193]
[1730791953677,40.8,2429.0,2428.7,2.5711765]
[1730791953876,40.8,2429.0,2428.9,0.41193]
[1730791954372,3.6464,2429.1,2428.9,0.41193]
[1730791954764,3.6464,2429.1,2429.0,0.41191]
[1730791955073,44.4464,2429.1,2429.0,0.41191]
[1730791955463,0.4258,2429.3,2429.1,0.41189]
[1730791955464,0.41187,2429.3,2429.1,0.41189]
[1730791955664,0.4686,2429.2,2429.1,0.41189]
[1730791955877,0.4459,2429.3,2429.0,2.5711765]
[1730791956072,0.4459,2429.3,2429.2,0.41188]
[1730791956374,0.4459,2429.3,2429.0,2.5711765]
[1730791956375,0.41188,2429.2,2429.0,2.9830865]
[1730791956575,0.85777,2429.3,2429.1,0.41189]
[1730791956881,0.85776,2429.3,2429.1,0.41189]
[1730791957072,0.4459,2429.3,2429.0,2.5711765]
[1730791957267,0.4459,2429.3,2429.1,0.85858]
[1730791957476,0.85777,2429.3,2429.1,0.4467]
[1730791958373,0.85777,2429.3,2429.1,0.85859]
[1730791958878,0.85776,2429.3,2429.1,0.85859]
[1730791960075,0.85776,2429.3,2429.1,0.41189]
[1730791960275,0.41188,2429.2,2429.0,6.1908865]
[1730791960472,0.85777,2429.3,2429.1,0.41189]
[1730791960671,0.41188,2429.2,2429.0,6.1908765]
[1730791961477,0.4459,2429.3,2429.0,5.7789765]
[1730791961680,0.4459,2429.3,2429.1,0.4119]
[1730791962574,0.85777,2429.3,2429.1,0.4119]
[1730791963482,0.85777,2429.3,2429.0,5.7789765]
[1730791963483,0.4119,2429.1,2429.0,3.2078]
[1730791963981,0.4459,2429.3,2428.9,0.41192]
[1730791964184,3.6537,2429.3,2428.7,5.7789765]
[1730791964381,0.41193,2429.0,2428.8,0.41195]
[1730791964682,0.4694,2428.9,2428.8,0.41195]
[1730791966484,0.4694,2428.9,2428.8,4.52875]
[1730791966782,0.41191,2429.1,2429.0,0.41191]
[1730791967382,0.41191,2429.1,2428.8,0.4443]
[1730791967576,0.41191,2429.1,2429.0,0.41191]
[1730791967778,0.86389,2429.2,2428.8,0.4443]
[1730791968085,0.4119,2429.1,2429.0,0.41191]
[1730791968587,0.452,2429.2,2429.0,0.41191]
[1730791968786,0.4119,2429.1,2429.0,0.41191]
[1730791969392,0.86389,2429.2,2429.0,0.41191]
[1730791969691,0.452,2429.2,2429.0,0.41191]
[1730791969883,0.4119,2429.1,2429.0,0.41191]
[1730791972392,0.86388,2429.2,2429.1,0.4119]
[1730791972990,0.86388,2429.2,2429.0,0.4362]
[1730791972991,0.452,2429.2,2429.0,0.4362]
[1730791973193,0.4119,2429.1,2429.0,0.84811]
[1730791973495,0.452,2429.2,2429.0,0.4362]
[1730791973694,0.86388,2429.2,2429.1,0.4119]
[1730791974108,0.86388,2429.2,2429.0,0.84811]
[1730791974109,0.4119,2429.1,2429.0,0.84811]
[1730791975293,0.4119,2429.1,2428.9,0.86112]
[1730791975488,0.41191,2429.0,2428.9,0.86112]
[1730791975684,0.85441,2429.0,2428.9,0.86112]
[1730791975884,0.41194,2428.9,2428.8,0.41194]
[1730791976096,0.85904,2428.9,2428.8,0.41194]
[1730791976791,0.41195,2428.8,2428.7,6.6372265]
[1730791976994,0.41195,2428.8,2428.7,6.6372365]
[1730791977296,0.41195,2428.8,2428.7,3.2078]
[1730791977595,0.85095,2428.8,2428.7,3.2078]
[1730791978294,0.4425,2429.0,2428.7,9.8965765]
[1730791978499,0.8765,2429.1,2429.0,0.4119]
[1730791978688,0.4646,2429.1,2429.0,0.4119]
[1730791979391,0.8765,2429.1,2429.0,0.4119]
[1730791979591,0.4646,2429.1,2429.0,0.4119]
[1730791980492,0.8765,2429.1,2429.0,0.4119]
[1730791980697,0.4646,2429.1,2429.0,0.4119]
[1730791981098,0.8765,2429.1,2429.0,0.4119]
[1730791981992,0.4646,2429.1,2429.0,0.4119]
[1730791982990,4.1272,2429.4,2429.0,2.5711765]
[1730791983196,4.53906,2429.4,2429.3,0.41186]